bitfinex-derivatives/quotes_BTCF0:USTF0_20241224
["timestamp","ask_amount","ask_price","bid_price","bid_amount"]
[1735015167926,0.053169,94176.0,94175.0,0.2363]
[1735015168122,0.053169,94176.0,94165.0,0.00159291]
[1735015168321,0.053169,94176.0,94165.0,9.1e-07]
[1735015168322,0.413974,94166.0,94165.0,9.1e-07]
[1735015168523,0.05318,94155.0,94154.0,0.14870091]
[1735015168719,0.053185,94147.0,94146.0,0.0438]
[1735015169032,0.413985,94147.0,94146.0,0.0438]
[1735015169825,0.05329919,94147.0,94146.0,0.0438]
[1735015171033,0.05429919,94147.0,94146.0,0.0508]
[1735015171329,0.03220067,94147.0,94146.0,0.002]
[1735015171528,0.03220067,94147.0,94137.0,0.14936269]
[1735015171529,0.39300067,94147.0,94137.0,0.01596]
[1735015171730,0.3608,94138.0,94137.0,0.01596]
[1735015171928,0.053189,94139.0,94137.0,0.01596]
[1735015172234,0.053191,94137.0,94116.0,0.01285955]
[1735015172425,0.053202,94117.0,94110.0,0.14936269]
[1735015172625,0.053202,94117.0,94107.0,0.01596]
[1735015172626,0.053207,94108.0,94107.0,0.16546175]
[1735015172823,0.053207,94108.0,94107.0,0.01596]
[1735015174335,0.3608,94116.0,94101.0,0.05966964]
[1735015174521,0.05321,94102.0,94101.0,0.05966964]
[1735015174726,0.05321,94102.0,94101.0,0.00010964]
[1735015175521,0.05321,94102.0,94100.0,6.4e-07]
[1735015175728,0.05421,94102.0,94100.0,6.4e-07]
[1735015176521,7.447e-05,94101.0,94100.0,6.4e-07]
[1735015176721,7.447e-05,94101.0,94100.0,0.00100064]
[1735015177236,7.447e-05,94101.0,94100.0,0.00096064]
[1735015177734,0.053216,94092.0,94090.0,0.14950175]
[1735015177935,0.053216,94092.0,94091.0,0.01755414]
[1735015178437,0.00207447,94101.0,94091.0,0.01755414]
[1735015178634,0.00207447,94101.0,94097.0,0.3608]
[1735015179027,0.053212,94100.0,94097.0,0.3608]
[1735015179931,0.053212,94100.0,94097.0,0.3618]
[1735015180530,7.447e-05,94101.0,94097.0,0.3618]
[1735015180742,0.414,94120.0,94098.0,0.21886991]
[1735015181035,0.053201,94119.0,94110.0,0.14950175]
[1735015181433,0.053203,94115.0,94110.0,0.14950175]
[1735015181628,0.00010255,94114.0,94110.0,0.14950175]
[1735015183131,0.00210255,94114.0,94110.0,0.14950175]
[1735015184043,0.00810255,94114.0,94110.0,0.14950175]
[1735015185134,0.053205,94111.0,94110.0,0.14950175]
[1735015185330,0.00810255,94114.0,94108.0,0.3608]
[1735015185642,0.053211,94101.0,94100.0,0.14950175]
[1735015185833,0.053215,94094.0,94092.0,0.1045]
[1735015186230,0.3608,94109.0,94091.0,0.16705589]
[1735015186231,0.3608,94100.0,94091.0,0.01755414]
[1735015186435,0.053216,94092.0,94091.0,0.01755414]
[1735015187142,0.053216,94092.0,94091.0,0.00159414]
[1735015189042,0.053216,94092.0,94091.0,0.00259414]
[1735015190945,0.3608,94109.0,94091.0,0.00259414]
[1735015191249,0.053213,94098.0,94091.0,0.00259414]
[1735015191436,0.053214,94096.0,94091.0,0.00259414]
[1735015191636,0.3608,94109.0,94091.0,0.00259414]
[1735015191846,0.053215,94095.0,94091.0,0.00259414]
[1735015192046,0.3608,94109.0,94091.0,0.00159414]
[1735015192251,0.3608,94109.0,94099.0,0.14950175]
[1735015192438,0.053212,94100.0,94099.0,0.14950175]
[1735015192635,0.053212,94100.0,94091.0,0.00259414]
[1735015192841,0.053212,94100.0,94091.0,0.00159414]
[1735015193042,0.053212,94100.0,94091.0,0.00259414]
[1735015193946,0.3608,94120.0,94096.0,0.3608]
[1735015194147,0.053208,94106.0,94100.0,0.14950175]
[1735015194941,0.3608,94120.0,94100.0,0.14950175]
[1735015195137,0.053211,94101.0,94096.0,0.3608]
[1735015195344,0.3608,94120.0,94096.0,0.3608]
[1735015195550,0.053212,94100.0,94096.0,0.3608]
[1735015197151,0.002,94106.0,94096.0,0.3608]
[1735015197351,0.053213,94097.0,94096.0,0.3608]
[1735015197553,0.002,94106.0,94096.0,0.3608]
[1735015197554,0.053209,94106.0,94096.0,0.3608]
[1735015197851,0.00310255,94114.0,94105.0,0.3608]
[1735015198047,0.053207,94109.0,94105.0,0.3608]
[1735015198244,0.053208,94107.0,94105.0,0.3608]
[1735015198447,0.053208,94107.0,94106.0,0.01596]
[1735015199441,0.057208,94107.0,94106.0,0.01596]
[1735015200845,0.059208,94107.0,94106.0,0.01596]
[1735015201649,0.057208,94107.0,94106.0,0.01596]
[1735015201852,0.055208,94107.0,94106.0,0.01596]
[1735015202053,0.060208,94107.0,94106.0,0.01596]
[1735015203052,0.007,94107.0,94097.0,0.01596]
[1735015203361,0.053215,94094.0,94093.0,0.1045]
[1735015203558,0.053215,94094.0,94093.0,0.14570058]
[1735015203856,0.053215,94094.0,94093.0,0.1045]
[1735015205155,0.031945,94094.0,94093.0,0.1045]
[1735015205457,0.392745,94094.0,94093.0,0.1045]
[1735015205652,0.392745,94094.0,94086.0,0.35696]
[1735015205954,0.053216,94092.0,94086.0,0.35696]
[1735015207151,0.053216,94092.0,94091.0,1.4e-07]
[1735015207360,0.414016,94092.0,94091.0,1.4e-07]
[1735015208056,0.053228,94070.0,94069.0,7.7e-07]
[1735015208255,0.774828,94070.0,94069.0,7.7e-07]
[1735015208567,0.7216,94070.0,94056.0,0.01596]
[1735015208857,0.053236,94057.0,94056.0,0.01596]
[1735015209059,0.0533532,94057.0,94056.0,0.01596]
[1735015209357,0.053239,94052.0,94051.0,0.00159463]
[1735015209958,0.06470589,94052.0,94051.0,0.00159463]
[1735015210153,0.053242,94046.0,94045.0,0.00010729]
[1735015210362,0.37226689,94052.0,94045.0,0.00010729]
[1735015210363,0.3608,94048.0,94045.0,0.00010729]
[1735015211463,0.001,94046.0,94045.0,0.00010729]
[1735015211858,0.001,94046.0,94045.0,0.36090729]
[1735015212156,0.1265343,94052.0,94045.0,0.44205801]
[1735015212157,0.001,94048.0,94045.0,0.44205801]
[1735015212359,0.1265343,94052.0,94051.0,0.053239]
[1735015212749,0.0001172,94057.0,94046.0,0.0437]
[1735015213051,0.0001172,94057.0,94045.0,0.40090729]
[1735015213052,0.0001172,94057.0,94047.0,0.14950175]
[1735015213249,0.001,94048.0,94047.0,0.14950175]
[1735015213455,0.0001172,94057.0,94048.0,0.11803021]
[1735015213764,0.0001172,94057.0,94056.0,0.414036]
[1735015214466,0.1265343,94068.0,94065.0,0.053231]
[1735015214767,0.1265343,94068.0,94066.0,0.3608]
[1735015215163,0.1265343,94086.0,94067.0,0.12130257]
[1735015215359,9.501e-05,94075.0,94070.0,0.053228]
[1735015215565,9.501e-05,94075.0,94074.0,0.3608]
[1735015217675,0.00509501,94075.0,94074.0,0.3608]
[1735015217969,0.00709501,94075.0,94074.0,0.37676]
[1735015218375,0.00709501,94075.0,94074.0,0.3608]
[1735015218566,0.00709501,94075.0,94074.0,0.37676]
[1735015221076,0.1265343,94104.0,94074.0,0.37676]
[1735015221368,0.37213852,94100.0,94091.0,0.053217]
[1735015221668,0.01133852,94100.0,94091.0,0.053217]
[1735015221881,0.1265343,94104.0,94091.0,0.053217]
[1735015222072,0.00011292,94103.0,94091.0,0.053217]
[1735015222273,0.3608,94102.0,94091.0,0.053217]
[1735015222979,0.3608,94102.0,94093.0,0.053215]
[1735015223180,0.001,94100.0,94093.0,0.053215]
[1735015223564,0.001,94100.0,94094.0,0.053214]
[1735015223764,0.3608,94102.0,94094.0,0.053214]
[1735015223972,0.3608,94102.0,94095.0,0.053214]
[1735015225372,0.3608,94102.0,94097.0,0.053213]
[1735015226076,0.00011292,94103.0,94102.0,0.05321]
[1735015227986,0.00011292,94103.0,94102.0,0.05421]
[1735015229278,0.00011292,94103.0,94102.0,0.05621]
[1735015232274,0.30011292,94103.0,94102.0,0.003]
[1735015232582,0.053224,94079.0,94073.0,0.37551367]
[1735015232887,0.3608,94077.0,94075.0,0.053225]
[1735015233082,0.3608,94088.0,94085.0,0.05322]
[1735015233776,0.3608,94088.0,94077.0,0.3608]
[1735015233976,0.3608,94088.0,94086.0,0.053219]
[1735015234178,0.0432,94099.0,94098.0,0.053213]
[1735015235883,0.05444068,94099.0,94098.0,0.053213]
[1735015236088,0.01124068,94099.0,94098.0,0.054213]
[1735015236288,0.00011292,94103.0,94098.0,0.001]
[1735015236477,0.00011292,94103.0,94102.0,0.05321]
[1735015237481,0.01097569,94103.0,94102.0,0.05421]
[1735015238178,0.053214,94097.0,94095.0,0.31729413]
[1735015238780,0.053215,94095.0,94085.0,0.05322]
[1735015239293,0.01097569,94103.0,94095.0,0.053214]
[1735015239686,0.01097569,94103.0,94095.0,0.055214]
[1735015240084,0.01097569,94103.0,94095.0,0.3608]
[1735015240388,0.01097569,94103.0,94101.0,0.053211]
[1735015240980,0.01097569,94103.0,94095.0,0.3638]
[1735015241786,0.053211,94101.0,94095.0,0.3638]
[1735015242594,0.01097569,94103.0,94101.0,0.002]
[1735015242888,0.00011292,94103.0,94101.0,0.231811]
[1735015243087,0.053195,94129.0,94102.0,0.0413]
[1735015243286,0.51034686,94150.0,94102.0,0.0413]
[1735015243287,0.01110165,94120.0,94112.0,0.414005]
[1735015243495,0.053191,94138.0,94112.0,0.414005]
[1735015244094,0.12640265,94134.0,94119.0,0.0532]
[1735015244295,0.12640265,94134.0,94123.0,0.3608]
[1735015244495,0.12640265,94134.0,94129.0,0.053195]
[1735015244794,0.13754857,94134.0,94129.0,0.053195]
[1735015245284,0.01114592,94134.0,94129.0,0.053195]
[1735015245485,0.053188,94142.0,94129.0,0.053195]
[1735015246186,0.12640265,94145.0,94123.0,0.002]
[1735015246384,0.36148,94150.0,94123.0,0.002]
[1735015246385,0.053189,94141.0,94123.0,0.002]
[1735015246586,0.053189,94141.0,94129.0,0.002]
[1735015246784,0.053189,94141.0,94129.0,0.15154686]
[1735015246991,0.053189,94141.0,94129.0,0.15254686]
[1735015247997,0.37190513,94139.0,94129.0,0.15254686]
[1735015248185,0.3608,94130.0,94129.0,0.003]
[1735015249298,0.3608,94130.0,94129.0,0.002]
[1735015249491,0.3608,94130.0,94129.0,0.004]
[1735015249696,0.3608,94130.0,94129.0,0.002]
[1735015250097,0.3608,94130.0,94118.0,0.053201]
[1735015250286,0.3618,94130.0,94129.0,0.002]
[1735015251087,0.3618,94130.0,94113.0,0.36090097]
[1735015251302,0.3618,94130.0,94129.0,0.053195]
[1735015251303,0.001,94130.0,94129.0,0.053195]
[1735015252190,0.002,94130.0,94129.0,0.053195]
[1735015252390,0.004,94130.0,94129.0,0.053195]
[1735015252796,0.003,94130.0,94129.0,0.053195]
[1735015253002,0.001,94130.0,94129.0,0.055195]
[1735015254198,0.05318,94156.0,94129.0,0.002]
[1735015254396,0.05318,94156.0,94146.0,0.14954686]
[1735015254594,0.06444924,94156.0,94146.0,0.14954686]
[1735015254795,0.3608,94153.0,94146.0,0.14954686]
[1735015255190,0.06444924,94156.0,94146.0,0.14954686]
[1735015255420,0.06744924,94156.0,94146.0,0.14954686]
[1735015255796,0.01426924,94156.0,94146.0,0.20273186]
[1735015256106,0.02026924,94156.0,94146.0,0.12873086]
[1735015256501,0.02026924,94156.0,94154.0,0.053181]
[1735015256802,0.01726924,94156.0,94154.0,0.053181]
[1735015258401,0.01126924,94156.0,94154.0,0.053181]
[1735015258598,0.009,94156.0,94154.0,0.053181]
[1735015258804,0.053187,94144.0,94143.0,0.3608]
[1735015259003,0.413987,94144.0,94130.0,0.14954686]
[1735015259199,0.3608,94144.0,94130.0,0.14954686]
[1735015259402,0.3608,94144.0,94129.0,0.3608]
[1735015259611,0.053188,94142.0,94129.0,0.3608]
[1735015259799,0.1338,94143.0,94130.0,0.14954686]
[1735015259993,0.053188,94142.0,94130.0,0.14954686]
[1735015260199,0.053188,94142.0,94130.0,0.15154686]
[1735015260399,0.053189,94141.0,94130.0,0.15154686]
[1735015260699,0.1338,94143.0,94130.0,0.15154686]
[1735015260895,0.053189,94140.0,94130.0,0.15154686]
[1735015261410,0.05319,94139.0,94130.0,0.002]
[1735015261596,0.05319,94138.0,94129.0,0.3608]
[1735015262303,0.05319,94138.0,94130.0,0.002]
[1735015263009,0.05419,94138.0,94129.0,0.3628]
[1735015263407,0.05419,94138.0,94130.0,0.002]
[1735015264102,0.001,94138.0,94130.0,0.002]
[1735015264504,0.001,94138.0,94130.0,0.055194]
[1735015264900,0.0415,94143.0,94130.0,0.053194]
[1735015265106,0.0415,94143.0,94130.0,0.055194]
[1735015265507,0.0415,94143.0,94130.0,0.053194]
[1735015265701,0.053191,94137.0,94130.0,0.002]
[1735015267103,0.0415,94143.0,94130.0,0.002]
[1735015268207,0.053192,94136.0,94130.0,0.002]
[1735015268410,0.0415,94143.0,94130.0,0.002]
[1735015268605,0.37246983,94144.0,94135.0,0.053191]
[1735015268807,0.001,94143.0,94135.0,0.053191]
[1735015269013,0.001,94143.0,94133.0,0.09962793]
[1735015269403,0.12640265,94153.0,94137.0,0.3608]
[1735015269608,0.12640265,94153.0,94152.0,0.3608]
[1735015270009,0.053182,94153.0,94152.0,0.3608]
[1735015270408,0.13743163,94155.0,94152.0,0.3608]
[1735015270915,0.01102898,94155.0,94152.0,0.3608]
[1735015271118,0.0923,94160.0,94144.0,0.3608]
[1735015271415,0.145478,94160.0,94150.0,0.09962793]
[1735015271719,0.053182,94153.0,94152.0,0.002]
[1735015272711,0.053183,94151.0,94150.0,0.002]
[1735015274421,0.001,94153.0,94152.0,0.002]
[1735015274609,0.054182,94153.0,94152.0,0.002]
[1735015274807,0.053184,94148.0,94147.0,0.25391857]
[1735015275009,0.053187,94144.0,94143.0,0.25391857]
[1735015276319,0.054187,94144.0,94136.0,0.25391857]
[1735015277024,0.06505223,94144.0,94136.0,0.25391857]
[1735015277519,0.06705223,94144.0,94136.0,0.25391857]
[1735015277795,0.06705223,94144.0,94139.0,0.25391857]
[1735015277934,0.01386523,94144.0,94139.0,0.25391857]
[1735015278224,0.053188,94141.0,94139.0,0.25391857]
[1735015279419,0.053188,94141.0,94137.0,0.25391857]
[1735015279724,0.36136001,94148.0,94137.0,0.25391857]
[1735015279904,0.12640265,94154.0,94143.0,0.3608]
[1735015280105,0.13755352,94154.0,94144.0,0.31182793]
[1735015280305,0.19073452,94154.0,94144.0,0.31182793]
[1735015280911,0.19073452,94154.0,94151.0,0.25391857]
[1735015280912,0.01115087,94154.0,94151.0,0.25391857]
[1735015281118,0.053177,94162.0,94151.0,0.25391857]
[1735015281522,0.053177,94162.0,94152.0,0.09962793]
[1735015282015,0.01076678,94162.0,94156.0,0.05318]
[1735015282223,0.053172,94170.0,94159.0,0.19095161]
[1735015282224,0.12640265,94166.0,94159.0,0.19095161]
[1735015282625,0.12640265,94166.0,94160.0,0.3608]
[1735015282817,0.15800331,94174.0,94170.0,0.053172]
[1735015283321,0.15800331,94174.0,94161.0,0.169777]
[1735015283526,0.001,94166.0,94163.0,0.053176]
[1735015284718,0.1221,94187.0,94170.0,0.053171]
[1735015284923,0.053161,94191.0,94177.0,0.09962793]
[1735015285115,0.37178238,94188.0,94177.0,0.09962793]
[1735015285714,0.053169,94175.0,94174.0,0.25420137]
[1735015287027,0.053169,94175.0,94174.0,0.19056154]
[1735015288222,0.056169,94175.0,94174.0,0.19056154]
[1735015288423,0.056169,94175.0,94171.0,0.19056154]
[1735015288923,0.053169,94175.0,94171.0,0.19056154]
[1735015289130,0.054169,94175.0,94171.0,0.19056154]
[1735015289626,0.053169,94175.0,94171.0,0.19156154]
[1735015290130,0.053169,94175.0,94171.0,0.001]
[1735015291035,0.053169,94175.0,94170.0,0.09962793]
[1735015291224,0.054169,94175.0,94170.0,0.09962793]
[1735015291726,0.053169,94175.0,94170.0,0.09962793]
[1735015292125,0.3608,94179.0,94167.0,0.19056154]
[1735015292126,0.053173,94168.0,94167.0,0.19056154]
[1735015294131,0.056173,94168.0,94160.0,0.09962793]
[1735015294431,0.3608,94163.0,94158.0,0.19056154]
[1735015294638,0.053177,94162.0,94158.0,0.19056154]
[1735015295338,0.053177,94162.0,94160.0,0.003]
[1735015295942,0.053178,94160.0,94158.0,0.002]
[1735015297052,0.1169,94159.0,94158.0,0.002]
[1735015298053,0.1169,94159.0,94150.0,0.09962793]
[1735015298350,0.3608,94153.0,94150.0,0.09962793]
[1735015299359,0.3608,94153.0,94150.0,0.19056154]
[1735015299855,0.053182,94152.0,94150.0,0.19256154]
[1735015300854,0.053182,94152.0,94150.0,0.002]
[1735015301351,0.053182,94152.0,94150.0,0.003]
[1735015302053,0.053182,94152.0,94150.0,0.001]
[1735015303650,0.06415916,94152.0,94150.0,0.001]
[1735015306954,0.01097716,94152.0,94150.0,0.054183]
[1735015307152,0.3608,94153.0,94150.0,0.054183]
[1735015308060,0.3608,94153.0,94150.0,0.055183]
[1735015308248,0.37155518,94153.0,94150.0,0.055183]
[1735015308652,0.37155518,94153.0,94150.0,0.053183]
[1735015308854,0.38155518,94153.0,94150.0,0.053183]
[1735015309262,0.37455518,94153.0,94150.0,0.053183]
[1735015309468,0.38155518,94153.0,94150.0,0.053183]
[1735015310557,0.38155518,94153.0,94147.0,0.31812687]
[1735015310856,0.38155518,94153.0,94147.0,0.16592141]
[1735015310857,0.053184,94148.0,94147.0,0.16592141]
[1735015311960,0.058184,94148.0,94147.0,0.16592141]
[1735015312363,0.053189,94141.0,94139.0,0.19077244]
[1735015312566,0.3608,94140.0,94139.0,0.19077244]
[1735015314160,0.3638,94140.0,94139.0,0.19077244]
[1735015314562,0.3708,94140.0,94139.0,0.19077244]
[1735015315162,0.423989,94140.0,94137.0,0.19236587]
[1735015316866,0.423989,94140.0,94138.0,0.19077244]
[1735015318555,0.416989,94140.0,94137.0,0.00159343]
[1735015318757,0.43505391,94140.0,94137.0,0.00159343]
[1735015319269,0.02106491,94140.0,94137.0,0.05478343]
[1735015320063,0.02106491,94140.0,94138.0,0.05319]
[1735015320263,0.01806491,94140.0,94138.0,0.37976244]
[1735015320459,0.02106491,94140.0,94138.0,0.37976244]
[1735015320768,0.01,94140.0,94139.0,0.3169]
[1735015320969,0.3608,94152.0,94140.0,0.1766]
[1735015321165,0.37179526,94152.0,94151.0,0.053183]
[1735015323065,0.01099526,94152.0,94151.0,0.053183]
[1735015323266,0.3608,94171.0,94152.0,0.053182]
[1735015323575,0.413972,94171.0,94160.0,0.09962793]
[1735015323965,0.42460333,94171.0,94160.0,0.09962793]
[1735015324566,0.42760333,94171.0,94160.0,0.09962793]
[1735015325075,0.43460333,94171.0,94170.0,0.19084502]
[1735015325272,0.43160333,94171.0,94170.0,0.19084502]
[1735015326279,0.43160333,94171.0,94169.0,0.11684502]
[1735015326661,0.42460333,94171.0,94169.0,0.11684502]
[1735015327382,0.42460333,94171.0,94170.0,0.001]
[1735015327584,0.42460333,94171.0,94170.0,0.003]
[1735015328073,0.42460333,94171.0,94170.0,0.002]
[1735015328571,0.42460333,94171.0,94169.0,0.003]
[1735015328773,0.37143133,94171.0,94170.0,0.001]
[1735015328978,0.01063133,94171.0,94170.0,0.001]
[1735015329180,0.3608,94183.0,94170.0,0.001]
[1735015329482,0.3608,94183.0,94173.0,0.09962793]
[1735015330569,0.37144168,94183.0,94173.0,0.09962793]
[1735015330872,0.37144168,94183.0,94181.0,0.053166]
[1735015331074,0.37144168,94183.0,94173.0,0.09962793]
[1735015331075,0.37344168,94183.0,94173.0,0.09962793]
[1735015331274,0.37344168,94183.0,94172.0,0.05317]
[1735015331475,0.37344168,94183.0,94170.0,0.61786003]
[1735015331476,0.053169,94176.0,94173.0,0.09962793]
[1735015331775,0.053169,94176.0,94170.0,0.25506003]
[1735015331979,0.053169,94176.0,94170.0,0.25446003]
[1735015332279,0.053169,94176.0,94166.0,0.09962793]
[1735015332280,0.053169,94176.0,94175.0,0.25446003]
[1735015332876,0.37500169,94183.0,94175.0,0.25446003]
[1735015333183,0.37444168,94183.0,94175.0,0.25446003]
[1735015333681,0.37144168,94183.0,94175.0,0.25446003]
[1735015333883,0.37144168,94183.0,94173.0,0.09962793]
[1735015334476,0.37444168,94183.0,94173.0,0.15279793]
[1735015334682,0.37444168,94183.0,94174.0,0.1352]
[1735015334882,0.37644168,94183.0,94174.0,0.1352]
[1735015335880,0.37644168,94183.0,94174.0,0.188369]
[1735015336587,0.37644168,94183.0,94175.0,0.053169]
[1735015336786,0.37644168,94183.0,94176.0,0.053168]
[1735015337888,0.37444168,94183.0,94176.0,0.053168]
[1735015338088,0.37644168,94183.0,94176.0,0.053168]
[1735015341190,0.37644168,94183.0,94173.0,0.09962793]
[1735015341391,0.053168,94178.0,94173.0,0.09962793]
[1735015342090,0.053169,94175.0,94173.0,0.09962793]
[1735015342390,0.053169,94175.0,94167.0,0.25446003]
[1735015343689,0.001,94178.0,94165.0,0.15280293]
[1735015343887,0.001,94178.0,94165.0,0.09962793]
[1735015344102,0.001,94178.0,94166.0,0.053174]
[1735015344885,0.001,94178.0,94168.0,0.053173]
[1735015345194,0.002,94178.0,94168.0,0.053173]
[1735015345395,0.002,94178.0,94165.0,0.35408796]
[1735015345785,0.002,94178.0,94173.0,0.05317]
[1735015346686,0.002,94178.0,94176.0,0.053168]
[1735015347087,0.002,94178.0,94177.0,0.1488]
[1735015348294,0.002,94178.0,94177.0,0.201968]
[1735015352996,0.002,94178.0,94174.0,0.31778892]
[1735015353198,0.002,94178.0,94174.0,0.31718892]
[1735015353599,0.002,94178.0,94177.0,0.50553275]
[1735015354092,0.001,94178.0,94177.0,0.50553275]
[1735015354294,0.002,94178.0,94177.0,0.50553275]
[1735015354899,0.001,94178.0,94175.0,0.31718892]
[1735015355202,0.002,94178.0,94175.0,0.31718892]
[1735015356202,0.001,94178.0,94176.0,0.50553275]
[1735015356407,0.002,94178.0,94176.0,0.50553275]
[1735015356907,0.053168,94177.0,94176.0,0.50553275]
[1735015357099,0.201768,94177.0,94176.0,0.50553275]
[1735015357705,0.201768,94177.0,94175.0,0.31718892]
[1735015358310,0.202768,94177.0,94175.0,0.31718892]
[1735015359406,0.202768,94177.0,94174.0,0.31718892]
[1735015361106,0.202768,94177.0,94172.0,0.31718892]
[1735015362204,0.202768,94177.0,94173.0,0.31718892]
[1735015363715,0.24490991,94177.0,94173.0,0.31718892]
[1735015365311,0.001,94177.0,94173.0,0.31718892]
[1735015365512,0.001,94177.0,94176.0,0.053169]
[1735015367915,0.001,94177.0,94176.0,0.09452938]
[1735015368516,0.001,94177.0,94176.0,0.4117183]
[1735015369007,0.001,94177.0,94176.0,0.4127183]
[1735015369209,0.001,94177.0,94176.0,0.5893183]
[1735015369714,0.09530991,94181.0,94176.0,0.5361493]
[1735015369917,0.01064168,94183.0,94180.0,0.1766]
[1735015370110,0.09530991,94190.0,94181.0,0.36486038]
[1735015370310,0.09530991,94190.0,94186.0,0.053162]
[1735015371217,0.45610991,94191.0,94184.0,0.31851662]
[1735015371912,0.45610991,94191.0,94186.0,0.053162]
[1735015372211,0.002,94190.0,94186.0,0.053162]
[1735015372714,0.006,94190.0,94186.0,0.053162]
[1735015373013,0.45870992,94191.0,94186.0,0.053162]
[1735015373318,0.47369529,94191.0,94186.0,0.053162]
[1735015373516,0.46869529,94191.0,94186.0,0.053162]
[1735015373813,0.005,94190.0,94184.0,0.31851662]
[1735015374005,0.005,94190.0,94185.0,0.31851662]
[1735015374520,0.005,94190.0,94186.0,0.001]
[1735015375424,0.005,94190.0,94185.0,0.001]
[1735015375425,0.09530991,94189.0,94185.0,0.001]
[1735015375812,0.09530991,94189.0,94186.0,0.003]
[1735015376221,0.09530991,94189.0,94183.0,0.24851662]
[1735015376405,0.09530991,94189.0,94186.0,0.003]
[1735015376813,0.09530991,94189.0,94183.0,0.24851662]
[1735015377018,0.09530991,94190.0,94186.0,0.003]
[1735015377621,0.09530991,94190.0,94186.0,0.005]
[1735015378311,0.09530991,94190.0,94186.0,0.003]
[1735015378511,0.09530991,94190.0,94186.0,0.004]
[1735015379221,0.09530991,94190.0,94186.0,0.001]
[1735015380119,0.09530991,94190.0,94186.0,0.003]
[1735015381219,0.09530991,94190.0,94181.0,0.17064993]
[1735015382122,0.09530991,94190.0,94181.0,0.11558793]
[1735015382317,0.1444,94189.0,94181.0,0.11558793]
[1735015382707,0.1444,94189.0,94181.0,0.11858793]
[1735015382921,0.1444,94189.0,94181.0,0.11958793]
[1735015384118,0.09530991,94188.0,94181.0,0.11658793]
[1735015384416,0.09530991,94188.0,94181.0,0.11958793]
[1735015388615,0.09530991,94188.0,94187.0,0.053162]
[1735015389626,0.09530991,94190.0,94187.0,0.053162]
[1735015389825,0.09530991,94190.0,94187.0,0.056162]
[1735015390420,0.09530991,94190.0,94187.0,0.058162]
[1735015391118,0.01058538,94191.0,94181.0,0.01596]
[1735015391317,0.09530991,94197.0,94181.0,0.11558793]
[1735015391524,0.09530991,94197.0,94182.0,0.0413211]
[1735015391923,0.09530991,94197.0,94190.0,0.05316]
[1735015393018,0.10723279,94197.0,94190.0,0.05316]
[1735015393420,0.10723279,94197.0,94191.0,0.05316]
[1735015393627,0.01192288,94197.0,94196.0,0.2547328]
[1735015394220,0.01292288,94197.0,94196.0,0.2547328]
[1735015394728,0.01192288,94197.0,94195.0,0.2547328]
[1735015394916,0.01292288,94197.0,94196.0,0.053157]
[1735015395721,0.01292288,94197.0,94196.0,0.413957]
[1735015396119,0.01292288,94197.0,94196.0,0.63187602]
[1735015397216,0.01192288,94197.0,94196.0,0.63187602]
[1735015397419,0.01192288,94197.0,94196.0,0.63287602]
[1735015397725,0.01192288,94197.0,94196.0,1.01509597]
[1735015397926,0.01092288,94197.0,94196.0,1.03305597]
[1735015398127,0.09526336,94212.0,94196.0,0.97989897]
[1735015398430,0.09526336,94212.0,94199.0,0.053156]
[1735015399424,0.45606336,94213.0,94199.0,0.053156]
[1735015400032,0.11096442,94200.0,94199.0,0.053156]
[1735015404120,0.3608,94213.0,94197.0,0.053156]
[1735015404325,0.3608,94213.0,94203.0,0.09962793]
[1735015404521,0.3608,94213.0,94206.0,0.053151]
[1735015405032,0.3608,94213.0,94203.0,0.09962793]
[1735015405337,0.3608,94213.0,94209.0,0.05315]
[1735015406026,0.1343,94218.0,94209.0,0.05315]
[1735015406232,0.007,94213.0,94209.0,0.05315]
[1735015406431,0.007,94213.0,94210.0,0.053149]
[1735015406931,0.007,94213.0,94211.0,0.25432543]
[1735015407637,0.3608,94216.0,94211.0,0.25432543]
[1735015407834,0.011,94213.0,94211.0,0.25432543]
[1735015408238,0.003,94213.0,94210.0,0.30747443]
[1735015408536,0.012,94213.0,94210.0,0.30747443]
[1735015408923,0.003,94213.0,94210.0,0.25432543]
[1735015409230,0.3618,94216.0,94203.0,0.59481472]
[1735015409231,0.053152,94205.0,94203.0,0.28258679]
[1735015409427,0.013,94213.0,94205.0,0.053152]
[1735015409634,0.013,94213.0,94203.0,0.28190679]
[1735015409834,0.013,94213.0,94206.0,0.053151]
[1735015410034,0.009,94213.0,94206.0,0.053151]
[1735015410239,0.013,94213.0,94206.0,0.053151]
[1735015410435,0.013,94213.0,94209.0,0.05315]
[1735015410935,0.012,94213.0,94209.0,0.05315]
[1735015411233,0.009,94213.0,94203.0,0.24426932]
[1735015411435,0.009,94213.0,94211.0,0.053148]
[1735015411637,0.009,94213.0,94211.0,0.229748]
[1735015412136,0.003,94213.0,94211.0,0.229748]
[1735015412532,0.01071284,94218.0,94214.0,0.053147]
[1735015412831,0.1354,94224.0,94215.0,0.053146]
[1735015413034,0.1354,94224.0,94210.0,0.1766]
[1735015413229,0.5069043,94224.0,94210.0,0.1766]
[1735015413540,0.5069043,94224.0,94214.0,0.06766932]
[1735015414040,0.5069043,94224.0,94215.0,0.002]
[1735015414339,0.001,94218.0,94217.0,0.053145]
[1735015414942,0.50746431,94224.0,94217.0,0.053145]
[1735015415139,0.5069043,94224.0,94217.0,0.053145]
[1735015415635,0.001,94218.0,94217.0,0.057145]
[1735015416841,0.001,94218.0,94217.0,0.060145]
[1735015417638,0.1461043,94224.0,94217.0,0.060145]
[1735015417834,0.1461043,94224.0,94217.0,0.076105]
[1735015418038,0.1461043,94224.0,94218.0,0.01596]
[1735015418440,0.0107043,94224.0,94220.0,0.053143]
[1735015418738,0.1436,94228.0,94220.0,0.053143]
[1735015419040,0.15437287,94228.0,94220.0,0.053143]
[1735015419238,0.3608,94224.0,94220.0,0.053143]
[1735015420140,0.3608,94224.0,94222.0,0.053142]
[1735015421841,0.01077287,94228.0,94222.0,0.053142]
[1735015422044,0.09526336,94234.0,94222.0,0.057142]